bitfinex-derivatives/quotes_SOLF0:USTF0_20240913
["timestamp","ask_amount","ask_price","bid_price","bid_amount"]
[1726206513290,3.3389,134.77,134.74,18.49885011]
[1726206513493,3.3389,134.77,134.75,5.065438]
[1726206513795,3.3389,134.77,134.74,18.49885011]
[1726206514691,3.3389,134.77,134.75,5.06531012]
[1726206514896,3.3389,134.77,134.74,18.49885011]
[1726206515191,3.3389,134.77,134.75,5.06529287]
[1726206515388,3.3389,134.77,134.74,18.49885011]
[1726206515588,3.3389,134.77,134.75,5.06507081]
[1726206515795,3.3389,134.77,134.74,18.49885011]
[1726206516097,3.3389,134.77,134.75,5.06507081]
[1726206516292,3.3389,134.77,134.74,18.49885011]
[1726206516483,3.3389,134.77,134.75,5.06506687]
[1726206516688,3.3389,134.77,134.74,18.49885011]
[1726206516890,3.3389,134.77,134.75,5.06508529]
[1726206517090,3.3389,134.77,134.74,18.49885011]
[1726206517486,3.3389,134.77,134.75,5.06509489]
[1726206522803,3.3389,134.77,134.75,8.40439489]
[1726206523402,3.3387,134.78,134.75,8.40439489]
[1726206524690,593.85006,134.82,134.77,11.45]
[1726206525202,582.40006,134.82,134.78,3.3385]
[1726206525395,593.85006,134.82,134.77,11.45]
[1726206526193,3.3381,134.8,134.77,14.7886]
[1726206526399,582.40006,134.82,134.78,16.51158272]
[1726206526598,582.40006,134.82,134.78,11.45]
[1726206527199,3.3378,134.81,134.79,3.3383]
[1726206527409,593.85006,134.82,134.77,11.45]
[1726206528900,3.338,134.81,134.78,3.3385]
[1726206529909,3.3379,134.81,134.78,3.3385]
[1726206531408,3.3381,134.8,134.77,3.3387]
[1726206536214,582.40006,134.82,134.79,11.45]
[1726206536507,582.40006,134.82,134.8,11.45]
[1726206536911,582.40006,134.82,134.8,14.7879]
[1726206541408,582.40006,134.82,134.81,14.7878]
[1726206541915,582.40006,134.82,134.81,11.45]
[1726206542105,582.40006,134.82,134.81,15.12681224]
[1726206542614,582.40006,134.82,134.81,18.46461224]
[1726206543607,582.40006,134.82,134.8,3.338]
[1726206543808,582.40006,134.82,134.76,1.3951]
[1726206544108,582.40006,134.82,134.8,11.45]
[1726206544308,582.40006,134.82,134.81,7.02537183]
[1726206544822,582.40006,134.82,134.81,3.3378]
[1726206545115,582.40006,134.82,134.81,18.48066138]
[1726206545315,582.40006,134.82,134.81,14.7878]
[1726206546018,582.40006,134.82,134.81,18.5663693]
[1726206547920,582.40006,134.82,134.81,19.9481693]
[1726206566828,582.40006,134.82,134.81,8.4981693]
[1726206567032,582.40006,134.82,134.81,19.9481693]
[1726206569732,582.40006,134.82,134.81,16.1696]
[1726206569921,582.40006,134.82,134.81,19.95613331]
[1726206573031,582.40006,134.82,134.81,18.57433331]
[1726206573234,582.40006,134.82,134.81,3.78653331]
[1726206573532,582.40006,134.82,134.8,14.788]
[1726206573922,582.40006,134.82,134.8,18.40500549]
[1726206574534,582.40006,134.82,134.75,2.647]
[1726206574535,593.85006,134.82,134.75,2.647]
[1726206574740,582.40006,134.82,134.79,11.45]
[1726206575435,582.40006,134.82,134.79,15.16420043]
[1726206575639,585.73776,134.82,134.79,15.16420043]
[1726206576531,585.73776,134.82,134.8,11.45]
[1726206577723,3.3378,134.81,134.79,15.16420043]
[1726206577925,593.85006,134.82,134.77,3.3387]
[1726206578130,11.45,134.81,134.72,12.48747781]
[1726206578324,3.3385,134.79,134.75,11.45]
[1726206578537,3.3385,134.79,134.75,15.21214693]
[1726206578725,3.3385,134.79,134.75,18.55144693]
[1726206580836,3.3381,134.8,134.77,11.45]
[1726206581542,3.3378,134.81,134.78,11.45]
[1726206581738,3.3378,134.81,134.79,11.45]
[1726206581938,582.40006,134.82,134.79,11.45]
[1726206582340,585.73766,134.82,134.79,11.45]
[1726206583939,585.73766,134.82,134.79,14.7883]
[1726206584642,582.40006,134.82,134.79,14.7883]
[1726206586344,585.73766,134.82,134.79,14.7883]
[1726206591435,3.338,134.81,134.78,11.45]
[1726206592135,3.338,134.81,134.79,3.77680627]
[1726206593256,3.338,134.81,134.78,14.7885]
[1726206593734,3.338,134.81,134.78,18.54007722]
[1726206599439,3.338,134.81,134.78,7.09007722]
[1726206599738,3.338,134.81,134.78,18.54007722]
[1726206600243,3.3381,134.8,134.78,18.54007722]
[1726206600447,3.3381,134.8,134.78,14.7885]
[1726206600653,593.85006,134.82,134.77,3.71307677]
[1726206600847,3.3383,134.79,134.76,3.3389]
[1726206601052,3.3383,134.79,134.76,14.7889]
[1726206601550,3.3383,134.79,134.76,18.52757908]
[1726206601941,3.3382,134.8,134.77,3.3388]
[1726206602341,3.3382,134.8,134.77,14.7888]
[1726206603349,3.3379,134.81,134.78,14.7885]
[1726206607464,3.3382,134.8,134.77,3.3387]
[1726206607760,3.3382,134.8,134.77,14.7887]
[1726206612061,11.45,134.81,134.76,3.73867908]
[1726206612361,11.45,134.79,134.75,11.45]
[1726206612563,3.3387,134.78,134.75,3.3391]
[1726206612891,3.3387,134.78,134.76,3.80241965]
[1726206614258,3.3387,134.78,134.76,7.14141965]
[1726206614764,3.3387,134.78,134.76,3.80241965]
[1726206614960,11.45,134.79,134.75,3.3392]
[1726206615160,3.3388,134.77,134.75,3.3392]
[1726206615360,3.3388,134.77,134.74,12.7505]
[1726206616088,3.3391,134.76,134.74,1.3005]
[1726206616266,11.45,134.77,134.72,1.357]
[1726206616455,3.3396,134.74,134.72,11.45]
[1726206617359,3.3394,134.75,134.72,11.45]
[1726206617560,11.45,134.77,134.69,1.4321]
[1726206617765,11.45,134.75,134.71,11.45]
[1726206618969,3.3397,134.74,134.71,14.7903]
[1726206619865,3.3397,134.74,134.71,11.45]
[1726206620067,3.3398,134.73,134.7,3.3404]
[1726206620260,11.45,134.74,134.69,14.7907]
[1726206620462,11.45,134.73,134.69,14.7907]
[1726206620656,14.79,134.73,134.69,14.7907]
[1726206620864,3.34,134.73,134.69,14.7907]
[1726206621262,3.34,134.73,134.7,11.45]
[1726206622067,3.34,134.73,134.7,14.7905]
[1726206625470,3.3402,134.72,134.69,3.3407]
[1726206627471,3.3402,134.72,134.68,17.6086]
[1726206630472,3.3399,134.73,134.69,14.7907]
[1726206635177,11.45,134.74,134.7,3.3404]
[1726206635178,3.3397,134.74,134.7,3.3404]
[1726206635544,14.7897,134.74,134.7,3.3404]
[1726206640581,14.7897,134.74,134.71,3.3403]
[1726206642474,3.3399,134.73,134.7,3.3405]
[1726206642874,14.7899,134.73,134.7,3.3405]
[1726206643574,3.3401,134.72,134.7,3.3405]
[1726206643973,14.7901,134.72,134.69,3.3408]
[1726206644984,3.3403,134.71,134.69,3.3408]
[1726206645203,11.45,134.72,134.69,3.3408]
[1726206646785,14.7902,134.72,134.69,3.3408]
[1726206648406,3.3403,134.71,134.68,6.1585]
[1726206650887,3.3403,134.71,134.68,2.8176]
[1726206651085,11.45,134.71,134.68,2.8176]
[1726206651922,3.3407,134.7,134.68,2.8176]
[1726206652387,6.6768,134.79,134.69,3.3408]
[1726206652592,11.45,134.73,134.69,3.3408]
[1726206653099,3.3402,134.72,134.69,3.3408]
[1726206653685,3.3404,134.71,134.68,4.773]
[1726206654087,3.3404,134.71,134.68,1.4321]
[1726206655784,3.3404,134.71,134.69,3.3408]
[1726206658682,14.7907,134.7,134.68,1.4321]
[1726206658902,11.45,134.69,134.68,1.4321]
[1726206660697,14.7907,134.7,134.68,1.4321]
[1726206661700,11.45,134.69,134.67,4.6314]
[1726206664184,11.45,134.7,134.67,4.6314]
[1726206664715,11.45,134.7,134.68,3.341]
[1726206665395,3.3404,134.71,134.68,3.341]
[1726206667000,3.3405,134.7,134.67,4.6315]
[1726206667401,14.7905,134.7,134.67,4.6315]
[1726206671594,11.45,134.7,134.68,3.341]
[1726206677001,14.7906,134.7,134.67,4.6315]
[1726206677609,11.45,134.7,134.67,4.6315]
[1726206679408,11.45,134.7,134.68,3.341]
[1726206681102,3.3401,134.72,134.69,3.3408]
[1726206681308,14.7901,134.72,134.69,3.3408]
[1726206682603,11.45,134.71,134.69,3.3408]
[1726206683022,14.7903,134.71,134.69,3.3408]
[1726206701506,14.7903,134.71,134.67,1.2903]
[1726206701507,14.7903,134.71,134.68,3.3409]
[1726206704742,14.7903,134.71,134.68,3.341]
[1726206705133,3.3403,134.71,134.67,1.2903]
[1726206705440,14.7903,134.71,134.68,5.08521395]
[1726206705637,14.7903,134.71,134.67,1.2903]
[1726206705845,14.7903,134.71,134.68,5.08527522]
[1726206706153,14.7903,134.71,134.68,3.341]
[1726206708041,11.45,134.7,134.68,3.341]
[1726206711646,14.7906,134.7,134.67,4.6314]
[1726206711842,14.7906,134.7,134.68,5.08809426]
[1726206712042,14.7906,134.7,134.67,4.6314]
[1726206712241,14.7906,134.7,134.68,5.08848955]
[1726206712444,14.7906,134.7,134.67,4.6314]
[1726206712645,14.7906,134.7,134.68,5.08841835]
[1726206712849,14.7906,134.7,134.67,4.6314]
[1726206713047,14.7906,134.7,134.68,5.08841835]
[1726206713247,14.7906,134.7,134.67,4.6314]
[1726206713449,14.7906,134.7,134.68,5.08867153]
[1726206713749,14.7906,134.7,134.67,4.6314]
[1726206713951,14.7906,134.7,134.68,5.08886682]
[1726206714137,14.7906,134.7,134.67,3.3411]
[1726206714342,11.45,134.69,134.68,5.08886682]
[1726206714996,11.45,134.69,134.67,3.3411]
[1726206715261,14.7906,134.7,134.67,3.3411]
[1726206715453,14.7906,134.7,134.68,5.08886682]
[1726206715751,14.7906,134.7,134.67,3.3411]
[1726206715953,11.45,134.7,134.68,8.42974426]
[1726206716143,11.45,134.7,134.68,3.341]
[1726206719052,3.3404,134.71,134.68,3.341]
[1726206719355,11.45,134.7,134.68,3.341]
[1726206720762,14.7906,134.7,134.67,3.3412]
[1726206721359,14.7906,134.7,134.68,5.08890638]
[1726206721558,14.7906,134.7,134.67,3.3412]
[1726206721762,14.7906,134.7,134.68,5.08909685]
[1726206721956,14.7906,134.7,134.67,3.3412]
[1726206722157,14.7906,134.7,134.68,5.08889983]
[1726206722355,14.7906,134.7,134.67,3.3412]
[1726206722657,14.7906,134.7,134.68,5.08879627]
[1726206722845,14.7906,134.7,134.67,3.3412]
[1726206723048,14.7906,134.7,134.68,5.08879627]
[1726206723256,14.7906,134.7,134.67,3.3412]
[1726206723449,14.7906,134.7,134.68,5.08886864]
[1726206723653,14.7906,134.7,134.67,3.3412]
[1726206723856,14.7906,134.7,134.68,5.08886864]
[1726206724254,14.7906,134.7,134.67,3.3412]
[1726206724758,14.7906,134.7,134.68,5.08880389]
[1726206724968,14.7906,134.7,134.67,3.3412]
[1726206725161,14.7906,134.7,134.68,5.08900124]
[1726206725363,14.7906,134.7,134.67,3.3412]
[1726206725556,14.7906,134.7,134.68,5.08981746]
[1726206725863,14.7906,134.7,134.67,3.3412]
[1726206726166,3.71657754,134.74,134.68,5.08959938]
[1726206726167,3.341,134.69,134.68,5.08959938]
[1726206727186,11.45,134.69,134.67,3.3413]
[1726206727361,11.45,134.69,134.68,5.08995015]
[1726206730563,11.45,134.69,134.67,3.3413]
[1726206731158,11.45,134.69,134.68,5.0895912]
[1726206732068,1.1924,134.76,134.68,5.0895912]
[1726206732266,11.45,134.73,134.69,16.5395912]
[1726206732610,11.45,134.73,134.7,5.0895912]
[1726206732754,11.45,134.73,134.69,11.45]
[1726206732957,11.45,134.73,134.7,5.08196035]
[1726206733157,11.45,134.73,134.7,1.3194]
[1726206733477,11.45,134.73,134.71,8.42155561]
[1726206733671,11.45,134.73,134.71,3.3401]
[1726206734256,17.25362942,134.8,134.72,15.17094664]
[1726206734462,11.45,134.76,134.72,11.45]
[1726206734765,3.3389,134.77,134.72,11.45]
[1726206734960,11.45,134.76,134.73,3.68530752]
[1726206735355,3.3386,134.78,134.74,3.3395]
[1726206735556,1.3608,134.83,134.74,11.45]
[1726206735770,11.45,134.79,134.74,11.45]
[1726206735963,1.3608,134.83,134.74,11.45]
[1726206735964,3.3382,134.8,134.76,3.339]
[1726206736266,14.7882,134.8,134.76,3.339]
[1726206736918,11.45,134.79,134.76,3.339]
[1726206737672,11.45,134.78,134.75,4.7204]
[1726206740770,14.7884,134.79,134.75,4.7204]
[1726206741567,11.45,134.79,134.76,3.339]
[1726206741869,11.45,134.78,134.75,1.3812]
[1726206743068,11.45,134.78,134.73,11.45]
[1726206743262,11.45,134.78,134.74,7.1178804]
[1726206743468,11.45,134.78,134.74,3.7784804]
[1726206744075,14.7887,134.78,134.74,7.1178804]
[1726206748173,3.3384,134.79,134.74,15.2284804]
[1726206748477,14.7884,134.79,134.74,15.2284804]
[1726206748679,14.7884,134.79,134.76,3.339]
[1726206749480,3.3386,134.78,134.75,3.3392]
[1726206760907,3.3386,134.78,134.76,3.339]
[1726206761098,3.3384,134.79,134.76,11.45]
[1726206761907,3.3382,134.8,134.77,3.3388]
[1726206762707,582.40006,134.82,134.79,11.45]
[1726206763611,582.40006,134.82,134.8,3.3381]
[1726206764350,582.40006,134.82,134.8,11.45]
[1726206764807,582.40006,134.82,134.8,3.3379]
[1726206768812,582.40006,134.82,134.79,3.3381]
[1726206771811,582.40006,134.82,134.77,1.3946]
[1726206772014,11.45,134.8,134.75,11.45]
[1726206772512,3.3384,134.79,134.76,3.3389]
[1726206773111,14.7882,134.8,134.76,3.3389]
[1726206775509,3.3382,134.8,134.77,3.3387]
[1726206775819,14.7879,134.81,134.77,3.3387]
[1726206776115,14.7879,134.81,134.78,3.3385]
[1726206777118,3.3379,134.81,134.78,3.3385]
[1726206779316,14.7881,134.8,134.77,3.3388]
[1726206780822,3.3384,134.79,134.76,3.3389]
[1726206783516,582.40006,134.82,134.78,11.45]
[1726206783721,582.40006,134.82,134.81,11.45]
[1726206784325,582.40006,134.82,134.81,15.06871891]
[1726206784733,582.40006,134.82,134.81,18.40651891]
[1726206786426,582.40006,134.82,134.81,14.7878]
[1726206792535,582.40006,134.82,134.8,3.338]
[1726206792733,582.40006,134.82,134.81,11.45]
[1726206801241,582.40006,134.82,134.8,14.788]
[1726206811053,582.40006,134.82,134.79,3.3381]
[1726206811255,582.40006,134.82,134.8,11.45]
[1726206815274,582.40006,134.82,134.8,14.788]
[1726206833768,582.40006,134.82,134.78,3.3383]
[1726206834072,582.40006,134.82,134.79,11.45]
[1726206834776,582.40006,134.82,134.8,11.45]
[1726206834980,582.40006,134.82,134.81,11.45]
[1726206840978,585.73766,134.82,134.79,14.7881]
[1726206844079,3.3378,134.81,134.79,11.45]
[1726206844659,582.40006,134.82,134.78,3.3385]
[1726206844660,582.40006,134.82,134.78,11.45]
[1726206844773,3.338,134.81,134.78,11.45]
[1726206844981,593.85006,134.82,134.77,14.7887]
[1726206845281,3.338,134.81,134.77,14.7887]
[1726206845483,593.85006,134.82,134.77,3.3387]
[1726206845681,593.85006,134.82,134.77,14.7887]
[1726206846784,3.3382,134.8,134.77,14.7887]
[1726206848479,3.3379,134.81,134.79,11.45]
[1726206855081,585.73776,134.82,134.79,11.45]
[1726206855486,582.40006,134.82,134.79,11.45]
[1726206856091,582.40006,134.82,134.79,14.7882]
[1726206857779,585.73766,134.82,134.79,14.7882]
[1726206863097,582.40006,134.82,134.8,11.45]
[1726206863291,582.40006,134.82,134.81,14.7878]
[1726206871486,582.40006,134.82,134.81,3.3378]
[1726206875106,582.40006,134.82,134.8,3.338]
[1726206878006,582.40006,134.82,134.8,14.788]
[1726206878610,582.40006,134.82,134.81,14.7878]
[1726206880612,582.40006,134.82,134.81,19.86866537]
[1726206881115,582.40006,134.82,134.81,14.7878]
[1726206892218,582.40006,134.82,134.81,3.3378]
[1726206894412,582.40006,134.82,134.8,3.3379]
[1726206897015,582.40006,134.82,134.8,14.7879]
[1726206905132,3.3379,134.81,134.78,3.3385]
[1726206905633,582.40006,134.82,134.78,11.45]
[1726206905634,593.85006,134.82,134.78,11.45]
[1726206906836,597.18776,134.82,134.79,3.3382]
[1726206908143,3.3381,134.8,134.75,4.1714]
[1726206908335,11.45,134.8,134.76,5.08459155]
[1726206908532,11.45,134.8,134.77,5.08459155]
[1726206908728,14.7883,134.8,134.77,16.53459155]
[1726206908924,582.40006,134.82,134.78,11.45]
[1726206909348,585.73776,134.82,134.78,14.7884]
[1726206913052,585.73776,134.82,134.79,3.3383]
[1726206913446,585.73776,134.82,134.79,14.7883]
[1726206918444,14.7878,134.81,134.78,3.3384]
[1726206922955,14.7881,134.8,134.77,3.3387]
[1726206926265,14.7881,134.8,134.78,3.3385]
[1726206927161,14.7881,134.8,134.77,3.3387]
[1726206928562,582.40006,134.82,134.73,124.1391075]
[1726206928563,11.45,134.79,134.73,124.1391075]
[1726206928867,582.40006,134.82,134.74,5.08749331]
[1726206928868,11.45,134.78,134.74,5.08749331]
[1726206929056,11.45,134.78,134.73,139.39226937]
[1726206929486,11.45,134.78,134.75,3.3392]
[1726206929664,11.45,134.78,134.72,12.8436]
[1726206929864,11.45,134.77,134.72,12.8436]
[1726206930071,14.7888,134.77,134.74,3.3394]
[1726206930565,14.7888,134.77,134.72,16.54181959]
[1726206930764,14.7888,134.77,134.73,5.09138966]
[1726206930950,14.7888,134.77,134.72,16.54181959]
[1726206931156,14.7888,134.77,134.74,3.3394]
[1726206932704,11.45,134.76,134.74,3.3394]
[1726206934365,14.7892,134.76,134.73,3.3397]
[1726206934572,11.45,134.75,134.73,3.3397]
[1726206946573,11.45,134.74,134.73,3.3397]
[1726206947281,11.45,134.74,134.72,3.3399]
[1726206947474,11.45,134.73,134.72,3.3399]
[1726206948377,11.45,134.74,134.72,3.3399]
[1726206949182,3.3392,134.76,134.73,3.3396]
[1726206949380,11.45,134.76,134.72,3.65115337]
[1726206950486,14.7891,134.76,134.73,3.3396]
[1726206951286,584.96686,134.82,134.73,3.3397]
[1726206951287,3.339,134.77,134.73,3.3397]
[1726206951475,11.45,134.75,134.73,3.3397]
[1726206953184,3.3385,134.79,134.75,3.3391]
[1726206953388,11.45,134.77,134.75,3.3391]
[1726206958073,3.3386,134.78,134.75,3.3391]
[1726206958284,11.45,134.77,134.75,3.3391]
[1726206962690,11.45,134.77,134.76,3.3391]
[1726206964592,11.45,134.77,134.75,3.3392]
[1726206972101,11.45,134.77,134.76,3.3391]
[1726206975995,11.45,134.77,134.75,3.3392]
[1726206978396,11.45,134.77,134.76,3.3391]
[1726206981697,11.45,134.77,134.75,3.3392]
[1726207000821,14.7886,134.78,134.75,3.3392]
[1726207001012,584.96686,134.82,134.73,11.45]
[1726207001214,3.3382,134.8,134.77,3.3387]
[1726207001512,3.3382,134.8,134.76,11.45]
[1726207001513,14.7882,134.8,134.76,11.45]
[1726207001713,14.7882,134.8,134.77,3.3388]
[1726207002308,11.45,134.79,134.77,3.3388]
[1726207010122,582.40006,134.82,134.78,3.3384]
[1726207010421,11.45,134.8,134.78,3.3384]
[1726207018422,11.45,134.79,134.75,1.3339]
[1726207018626,11.45,134.77,134.75,1.3339]
[1726207019833,11.45,134.77,134.76,3.3389]
[1726207027436,14.7889,134.77,134.72,12.46325337]
[1726207027642,11.45,134.76,134.73,8.42524484]
[1726207027931,11.45,134.76,134.73,3.3398]
[1726207029936,11.45,134.75,134.74,3.3395]
[1726207031034,11.45,134.77,134.74,3.3395]
[1726207031551,11.45,134.77,134.75,3.3393]
[1726207033832,3.3386,134.78,134.75,3.3393]
[1726207034138,11.45,134.77,134.75,3.3393]
[1726207038340,11.45,134.77,134.76,3.3391]
[1726207039348,11.45,134.77,134.75,3.3392]
[1726207039942,11.45,134.76,134.75,3.3392]
[1726207040142,11.45,134.76,134.74,3.3394]
[1726207040437,14.7891,134.76,134.74,3.3394]
[1726207040642,11.45,134.75,134.73,3.3397]
[1726207040846,11.45,134.74,134.73,3.3397]
[1726207041031,11.45,134.74,134.73,8.42949195]
[1726207041236,11.45,134.74,134.73,5.08979195]
[1726207042555,11.45,134.74,134.72,3.34]
[1726207051954,14.7896,134.74,134.71,4.6538]
[1726207052146,14.7896,134.74,134.72,5.09054519]
[1726207052583,14.7896,134.74,134.71,4.6538]
[1726207053248,11.45,134.73,134.72,5.09083921]
[1726207056159,11.45,134.73,134.71,3.3402]
[1726207056353,11.45,134.73,134.72,5.09079133]
[1726207056657,11.45,134.73,134.71,3.3402]
[1726207057077,3.3396,134.74,134.71,3.3402]
[1726207057358,11.45,134.73,134.71,3.3402]
[1726207063256,11.45,134.73,134.72,3.34]
[1726207085386,11.45,134.73,134.72,8.42817199]
[1726207088199,3.3394,134.75,134.72,8.87863828]
[1726207088200,11.45,134.75,134.72,8.87863828]
[1726207088493,11.45,134.75,134.73,5.08817199]
[1726207088698,11.45,134.75,134.74,8.42757199]
[1726207088881,11.45,134.75,134.74,3.3394]
[1726207089088,11.45,134.75,134.74,8.42560242]
[1726207091284,1.1905,134.81,134.74,5.08620242]
[1726207091483,3.3384,134.79,134.76,3.339]
[1726207091695,11.45,134.77,134.76,3.339]
[1726207103207,3.3384,134.79,134.76,3.339]
[1726207103408,11.45,134.77,134.76,3.339]
[1726207104704,3.3384,134.79,134.76,3.339]
[1726207105227,11.45,134.79,134.77,3.3387]
[1726207107515,3.3382,134.8,134.77,3.3387]
[1726207107711,11.45,134.79,134.77,3.3387]
[1726207110904,11.45,134.79,134.78,3.3386]
[1726207111105,11.45,134.79,134.74,11.45]
[1726207113820,11.45,134.79,134.76,3.3388]
[1726207120025,11.45,134.79,134.77,3.3388]
[1726207127733,11.45,134.79,134.78,3.3386]
[1726207127927,11.45,134.8,134.78,3.3386]
[1726207128329,11.45,134.8,134.77,3.3387]
[1726207128530,11.45,134.79,134.77,3.3387]
[1726207129334,11.45,134.79,134.76,3.3389]
[1726207129732,14.7883,134.79,134.76,3.3389]
[1726207130040,11.45,134.78,134.75,3.3392]
[1726207130427,14.7886,134.78,134.75,3.3392]
[1726207131536,14.7886,134.78,134.74,3.3394]
[1726207133234,14.7886,134.78,134.75,3.3393]
[1726207135134,11.45,134.78,134.73,11.45]
[1726207135334,11.45,134.78,134.74,5.08739455]
[1726207135533,11.45,134.78,134.73,11.45]
[1726207135827,11.45,134.78,134.75,3.3391]
[1726207141742,14.7883,134.79,134.76,3.339]
[1726207142135,14.7883,134.79,134.72,15.16746629]
[1726207142136,11.45,134.79,134.75,11.45]
[1726207143040,11.45,134.79,134.76,3.3389]
[1726207143851,14.7883,134.79,134.76,3.3389]
[1726207148150,11.45,134.79,134.76,3.3389]
[1726207158055,14.7883,134.79,134.76,3.3389]
[1726207163452,11.45,134.78,134.76,3.3389]
[1726207167861,11.45,134.77,134.74,3.3394]
[1726207168155,11.45,134.76,134.74,3.3394]
[1726207175868,14.7891,134.76,134.73,3.3397]
[1726207176171,11.45,134.75,134.73,3.3397]
[1726207176667,14.7893,134.75,134.72,8.45056629]
[1726207177658,14.7893,134.75,134.72,4.6601]
[1726207178465,14.7893,134.75,134.73,5.08821764]
[1726207179365,11.45,134.74,134.73,5.08821764]
[1726207181963,11.45,134.74,134.72,4.6601]
[1726207183968,11.45,134.74,134.72,8.35552619]
[1726207184560,11.45,134.74,134.72,4.6601]
[1726207184762,11.45,134.74,134.72,8.35228204]
[1726207185572,11.45,134.74,134.72,4.6601]
[1726207186066,11.45,134.74,134.72,8.45102731]
[1726207186265,11.45,134.74,134.72,4.6601]
[1726207186467,11.45,134.74,134.72,8.31107631]
[1726207187172,11.45,134.74,134.72,4.6601]
[1726207187471,11.45,134.74,134.72,8.37158563]
[1726207188175,11.45,134.74,134.72,4.6601]
[1726207188876,11.45,134.74,134.72,8.30402308]
[1726207189374,11.45,134.74,134.72,4.6601]
[1726207196676,11.45,134.74,134.72,8.43125536]
[1726207199582,11.45,134.74,134.72,3.3399]
[1726207200379,11.45,134.74,134.71,3.3402]
[1726207200781,11.45,134.73,134.71,3.3402]
[1726207202277,11.45,134.74,134.72,3.3398]
[1726207203279,17.24643521,134.81,134.73,3.3398]
[1726207203483,11.45,134.75,134.73,3.3398]
[1726207204581,11.45,134.75,134.74,3.3395]
[1726207205883,11.45,134.77,134.75,3.3391]
[1726207206284,11.45,134.76,134.75,3.3391]
[1726207207284,11.45,134.76,134.74,3.3394]
[1726207207783,11.45,134.75,134.74,3.3394]
[1726207209205,11.45,134.75,134.73,8.36977411]
[1726207209384,11.45,134.74,134.73,4.6375]
[1726207211689,11.45,134.74,134.72,6.9793684]
[1726207211896,11.45,134.74,134.72,3.3399]
[1726207212090,11.45,134.73,134.69,20.2034]
[1726207212295,11.45,134.73,134.69,1.3244]
[1726207212296,11.45,134.72,134.69,1.3244]
[1726207212501,11.45,134.72,134.7,5.08455957]
[1726207212791,11.45,134.72,134.69,1.3244]
[1726207213000,11.45,134.72,134.7,5.08598901]
[1726207213184,11.45,134.72,134.69,1.3244]
[1726207213384,11.45,134.72,134.7,5.08613542]
[1726207213687,11.45,134.71,134.69,1.3244]
[1726207213887,11.45,134.71,134.7,5.08656989]
[1726207214992,11.45,134.71,134.7,3.3405]
[1726207215195,11.45,134.71,134.7,8.4267625]
[1726207215787,11.45,134.72,134.7,8.4267625]
[1726207215994,11.45,134.72,134.7,3.3405]
[1726207221801,11.45,134.72,134.69,1.3244]
[1726207221802,11.45,134.72,134.69,4.6651]
[1726207223492,11.45,134.72,134.7,5.08591785]
[1726207223693,11.45,134.72,134.69,4.6651]
[1726207223899,11.45,134.72,134.7,5.08591785]
[1726207224208,11.45,134.72,134.69,4.6651]
[1726207225501,11.45,134.72,134.7,3.3405]
[1726207226106,11.45,134.71,134.69,3.3407]
[1726207226407,11.47627861,134.7,134.65,16.53248875]
[1726207226604,11.47627861,134.7,134.68,3.3409]
[1726207228305,11.45,134.7,134.68,3.3409]
[1726207230703,11.45,134.69,134.65,1.2947]